lending/lending_fUSD_20241212
["ID","MTS","AMOUNT","RATE_DAILY","PERIOD"]
[345091787,1734007833311,-746.48,0.00016499,2]
[345091788,1734007833320,-746.48,0.00016499,2]
[345091789,1734007833329,-500.0,0.00016499,2]
[345091790,1734007833339,-155.6,0.00016499,2]
[345091791,1734007833348,-500.0,0.00016499,2]
[345091792,1734007833357,-500.0,0.00016499,2]
[345091793,1734007833368,-500.0,0.00016499,2]
[345091794,1734007833380,-500.0,0.00016499,2]
[345091795,1734007833389,-500.0,0.00016499,2]
[345091796,1734007833398,-6114.76,0.00016499,2]
[345091797,1734007833407,-6114.76,0.00016499,2]
[345091798,1734007833612,-6114.76,0.00016499,2]
[345091799,1734007833622,-713.08,0.00016499,2]
[345091800,1734007833632,-500.0,0.00016499,2]
[345091801,1734007833642,-713.08,0.00016499,2]
[345091802,1734007833652,-500.0,0.00016499,2]
[345091803,1734007833661,-190.0,0.00016499,2]
[345091804,1734007833671,-543.38,0.00016499,2]
[345091805,1734007833681,-543.38,0.00016499,2]
[345091806,1734007833691,-543.38,0.00016499,2]
[345091807,1734007833701,-500.0,0.00016499,2]
[345091808,1734007833710,-500.0,0.00016499,2]
[345091809,1734007833720,-500.0,0.00016499,2]
[345091810,1734007833729,-500.0,0.00016499,2]
[345091811,1734007833739,-500.0,0.00016499,2]
[345091812,1734007833749,-500.0,0.00016499,2]
[345091813,1734007833759,-500.0,0.00016499,2]
[345091814,1734007833768,-500.0,0.00016499,2]
[345091815,1734007833780,-500.0,0.00016499,2]
[345091816,1734007833789,-500.0,0.00016499,2]
[345091817,1734007833799,-2000.0,0.00016499,2]
[345091818,1734007833809,-200.0,0.00016499,2]
[345091819,1734007833818,-500.0,0.00016499,2]
[345091820,1734007833827,-500.0,0.00016499,2]
[345091821,1734007833837,-500.0,0.00016499,2]
[345091822,1734007833847,-500.0,0.00016499,2]
[345091823,1734007833856,-500.0,0.00016499,2]
[345091824,1734007833866,-154.48921678,0.00016499,2]
[345091825,1734007834085,-345.51078322,0.00016499,2]
[345091826,1734007834095,-500.0,0.00016499,2]
[345091827,1734007834105,-500.0,0.00016499,2]
[345091828,1734007834114,-500.0,0.00016499,2]
[345091829,1734007834124,-500.0,0.00016499,2]
[345091830,1734007834134,-500.0,0.00016499,2]
[345091831,1734007834145,-41723.65032714,0.000165,4]
[345091836,1734007838169,-7424.09349619,0.000165,4]
[345091837,1734007838180,-1024.70591123,0.000165,4]
[345091838,1734007838191,-2006.47383182,0.000165,4]
[345091839,1734007838282,-29995.80177459,0.000165,4]
[345091840,1734007838340,-448.26647474,0.000165,4]
[345091841,1734007838451,-7874.4,0.000165,4]
[345091843,1734007840265,-21989.398385,0.000165,4]
[345091844,1734007840278,-749.32739098,0.000165,4]
[345091845,1734007840321,-80794.9733667,0.000165,4]
[345091846,1734007840332,-11928.8124012,0.000165,4]
[345091847,1734007840387,-4490.97598995,0.000165,4]
[345091848,1734007840398,-346.5449804,0.000165,4]
[345091850,1734007840553,-3349.53438126,0.000165,4]
[345091868,1734007843169,-500.0,0.00016499,2]
[345091869,1734007843178,-116.25689561,0.000165,4]
[345091870,1734007843188,-1601.74323878,0.000165,2]
[345091872,1734007843331,-2247.9388104,0.000165,2]
[345091885,1734007845918,4921.37641086,0.000111,2]
[345091886,1734007845938,878.62358914,0.000111,2]
[345091888,1734007846410,-0.99999982,0.000165,2]
[345091889,1734007846421,-1362.280044,0.000165,2]
[345091890,1734007846440,-477.1151,0.000165,2]
[345091892,1734008182745,155.08,0.00012442,2]
[345091893,1734008212111,4037.48119834,0.0001,2]
[345091894,1734008231454,503.46,0.00010137,2]
[345091898,1734008514596,450.0,0.00013,2]
[345091899,1734008649937,2996.24,0.00013,30]
[345091901,1734008823305,-500.0,0.000198,120]
[345091902,1734008823344,-200.0,0.0002,120]
[345091903,1734008823388,-1000.0,0.00021,120]
[345091904,1734008823416,-150.0,0.00021385,120]
[345091905,1734008823443,-150.0,0.00021389,120]
[345091906,1734008823470,-200.0,0.00021917,120]
[345091910,1734008987117,150.0,0.00013,30]
[345091916,1734009032428,-302.73515376,0.00013388,2]
[345091917,1734009032437,-895.0,0.00013389,2]
[345091918,1734009032447,-152.12,0.00013699,2]
[345091919,1734009032456,-1105.76984624,0.00014407,2]
[345091920,1734009032467,-894.23015376,0.00014407,2]
[345091921,1734009032477,-1400.0,0.000146,5]
[345091922,1734009032487,-580.79,0.00014624,2]
[345091923,1734009032496,-2900.0,0.000147,5]
[345091924,1734009032506,-250.0,0.00014719,2]
[345091925,1734009032515,-200.0,0.0001477,2]
[345091926,1734009032524,-300.0,0.00014799,2]
[345091927,1734009032534,-4300.0,0.000148,5]
[345091928,1734009032543,-1008.84,0.00014807,2]
[345091929,1734009032553,-180.43,0.00014851,2]
[345091930,1734009032563,-5800.0,0.000149,5]
[345091931,1734009032572,-500.0,0.00015,2]
[345091932,1734009032582,-154.38,0.00015023,2]
[345091933,1734009032591,-1531.32984624,0.00015156,2]
[345091934,1734009032602,-249.11315376,0.00015156,2]
[345091935,1734009032612,-181.463,0.00015156,2]
[345091936,1734009032621,-176.82,0.00015218,2]
[345091937,1734009032632,-300.0,0.00015256,2]
[345091938,1734009032642,-781.95384624,0.00015257,2]
[345091939,1734009032653,-42.78615376,0.00015257,2]
[345091941,1734009032663,-150.99,0.00015257,2]
[345091942,1734009032672,-299.99,0.00015257,2]
[345091943,1734009032681,-5477.16,0.00015257,2]
[345091944,1734009032692,-999.99,0.00015257,2]
[345091945,1734009032706,-150.99,0.00015311,2]
[345091947,1734009032716,-4235.46,0.00015311,2]
[345091949,1734009032726,-392.86,0.00015457,2]
[345091951,1734009032738,-551.63,0.00015463,2]
[345091953,1734009032747,-294.34771821,0.00015463,2]
[345091955,1734009032760,-205.65228179,0.00015463,2]
[345091957,1734009032773,-500.0,0.00015463,2]
[345091959,1734009032783,-3032.67,0.00015463,2]
[345091961,1734009032792,-500.0,0.00015463,2]
[345091962,1734009032803,-500.0,0.00015463,2]
[345091963,1734009032815,-500.0,0.00015463,2]
[345091964,1734009032825,-397.14228043,0.00015463,2]
[345091966,1734009032834,-500.0,0.00015463,2]
[345091968,1734009032845,-500.0,0.00015463,2]
[345091970,1734009032854,-500.0,0.00015463,2]
[345091972,1734009032864,-500.0,0.00015463,2]
[345091974,1734009032874,-324.25737,0.00015463,2]
[345091976,1734009032887,-235.7414241,0.00015463,2]
[345091978,1734009032896,-500.0,0.00015463,2]
[345091980,1734009032906,-500.0,0.00015463,2]
[345091983,1734009032915,-500.0,0.00015463,2]
[345091985,1734009032925,-500.0,0.00015463,2]
[345091987,1734009032936,-500.0,0.00015463,2]
[345091989,1734009032945,-500.0,0.00015463,2]
[345091991,1734009032955,-545.9,0.00015463,2]
[345091993,1734009032964,-500.0,0.00015463,2]
[345091995,1734009032974,-500.0,0.00015463,2]
[345091997,1734009032983,-500.0,0.00015463,2]
[345091999,1734009032993,-500.0,0.00015463,2]
[345092001,1734009033002,-500.0,0.00015463,2]
[345092003,1734009033012,-500.0,0.00015463,2]
[345092005,1734009033021,-686.0,0.00015463,2]
[345092007,1734009033031,-627.6,0.00015463,2]
[345092009,1734009033040,-1853.2,0.00015463,2]
[345092011,1734009033053,-500.0,0.00015463,2]
[345092012,1734009033062,-500.0,0.00015463,2]
[345092013,1734009033072,-500.0,0.00015463,2]
[345092015,1734009033082,-43551.5585759,0.00015464,4]
[345092019,1734009033107,-439.8200001,0.00015464,4]
[345092021,1734009033119,-3927.4474252,0.00015464,4]
[345092026,1734009033167,-1843.90568034,0.00015464,4]
[345092042,1734009038307,-4579.6151759,0.00015464,4]
[345092043,1734009038361,-5571.0,0.00015464,4]
[345092044,1734009038418,-3440.28219888,0.00015464,4]
[345092045,1734009038429,-724.000035,0.00015464,4]
[345092046,1734009038440,-1269.99759,0.00015464,4]
[345092047,1734009038451,-2388.6000052,0.00015464,4]
[345092048,1734009038462,-354.72735042,0.00015464,4]
[345092049,1734009038478,-2442.9649,0.00015464,4]
[345092050,1734009038489,-790.42,0.00015464,4]
[345092051,1734009038500,-10752.93798557,0.00015464,4]
[345092052,1734009038511,-1004.77373127,0.00015464,4]
[345092053,1734009038523,-3163.74223281,0.00015464,4]
[345092054,1734009038536,-825.41873628,0.00015464,4]
[345092055,1734009038647,-2970.10292695,0.00015464,4]
[345092056,1734009038658,-1055.23833449,0.00015464,4]
[345092057,1734009038755,-540.73409816,0.00015464,4]
[345092060,1734009040850,-260.11521252,0.00015464,4]
[345092061,1734009040866,-640.79999988,0.00015464,4]
[345092062,1734009040879,-482.07716015,0.00015464,4]
[345092063,1734009040896,-342.4737678,0.00015464,4]
[345092064,1734009040909,-402.47085742,0.00015464,4]
[345092065,1734009040925,-13366.38382317,0.00015464,4]
[345092066,1734009040936,-23642.10375018,0.00015464,7]
[345092067,1734009040970,-500.0,0.00015463,2]
[345092068,1734009040982,-8914.253,0.00015464,7]
[345092069,1734009040995,-862.3159344,0.00015464,7]
[345092086,1734009043385,-5142.67,0.00015464,7]
[345092087,1734009043440,-601.34479984,0.00015464,7]
[345092088,1734009043498,-256.27,0.00015464,7]
[345092089,1734009043555,-2917.19495534,0.00015464,7]
[345092090,1734009043568,-15931.91387679,0.00015464,7]
[345092091,1734009043612,-100810.0,0.00015464,7]
[345092092,1734009043720,-8228.34190125,0.00015464,7]
[345092093,1734009043731,-2000.0,0.00015464,2]
[345092094,1734009043743,-500.0,0.00015464,2]
[345092095,1734009043753,-500.0,0.00015464,2]
[345092096,1734009043763,-500.0,0.00015464,2]
[345092097,1734009043779,-535.96906467,0.00015464,2]
[345092098,1734009043790,-509.98561055,0.00015464,2]
[345092099,1734009043801,-500.0,0.00015464,2]
[345092100,1734009043812,-500.0,0.00015464,2]
[345092101,1734009043823,-621.27,0.00015464,2]
[345092102,1734009043834,-500.0,0.00015464,2]
[345092103,1734009043845,-500.0,0.00015464,2]
[345092104,1734009043856,-456.30680314,0.00015464,2]
[345092105,1734009043867,-500.0,0.00015464,2]
[345092106,1734009043878,-500.0,0.00015464,2]
[345092107,1734009043888,-500.0,0.00015464,2]
[345092108,1734009043901,-500.0,0.00015464,2]
[345092109,1734009043912,-500.0,0.00015464,2]
[345092110,1734009043923,-500.0,0.00015464,2]
[345092111,1734009043934,-500.0,0.00015464,2]
[345092113,1734009043945,-500.0,0.00015464,2]
[345092115,1734009043955,-297.61841815,0.00015464,2]
[345092117,1734009043966,-332.53088885,0.00015464,2]
[345092118,1734009043977,-500.0,0.00015464,2]
[345092119,1734009043988,-500.0,0.00015464,2]
[345092120,1734009043999,-500.0,0.00015464,2]
[345092121,1734009044010,-500.0,0.00015464,2]
[345092122,1734009044021,-500.0,0.00015464,2]
[345092123,1734009044032,-500.0,0.00015464,2]
[345092124,1734009044043,-500.0,0.00015464,2]
[345092125,1734009044054,-500.0,0.00015464,2]
[345092126,1734009044064,-500.0,0.00015464,2]
[345092127,1734009044075,-500.0,0.00015464,2]
[345092128,1734009044087,-500.0,0.00015464,2]
[345092129,1734009044097,-500.0,0.00015464,2]
[345092130,1734009044108,-500.0,0.00015464,2]
[345092131,1734009044119,-500.0,0.00015464,2]
[345092132,1734009044129,-500.0,0.00015464,2]
[345092133,1734009044139,-570.25,0.00015464,2]
[345092134,1734009044151,-564.89,0.00015464,2]
[345092135,1734009044161,-500.0,0.00015464,2]
[345092136,1734009044172,-500.0,0.00015464,2]
[345092137,1734009044183,-500.0,0.00015464,2]
[345092138,1734009044193,-500.0,0.00015464,2]
[345092139,1734009044204,-585.3772464,0.00015464,2]
[345092140,1734009044214,-551.63,0.00015464,2]
[345092141,1734009044225,-551.63,0.00015464,2]
[345092142,1734009044235,-551.63,0.00015464,2]
[345092143,1734009044246,-551.63,0.00015464,2]
[345092144,1734009044256,-551.63,0.00015464,2]
[345092145,1734009044267,-551.63,0.00015464,2]
[345092146,1734009044277,-551.63,0.00015464,2]
[345092147,1734009044288,-551.63,0.00015464,2]
[345092148,1734009044299,-551.63,0.00015464,2]
[345092149,1734009044311,-551.63,0.00015464,2]
[345092150,1734009044322,-500.0,0.00015464,2]
[345092151,1734009044333,-500.0,0.00015464,2]
[345092152,1734009044344,-500.0,0.00015464,2]
[345092153,1734009044355,-500.0,0.00015464,2]
[345092154,1734009044366,-500.0,0.00015464,2]
[345092155,1734009044378,-500.0,0.00015464,2]
[345092156,1734009044388,-500.0,0.00015464,2]
[345092157,1734009044401,-500.0,0.00015464,2]
[345092158,1734009044411,-500.0,0.00015464,2]
[345092159,1734009044422,-500.0,0.00015464,2]
[345092160,1734009044432,-500.0,0.00015464,2]
[345092161,1734009044444,-500.0,0.00015464,2]
[345092162,1734009044455,-500.0,0.00015464,2]
[345092163,1734009044466,-500.0,0.00015464,2]
[345092164,1734009044477,-500.0,0.00015464,2]
[345092165,1734009044488,-500.0,0.00015464,2]
[345092166,1734009044498,-500.0,0.00015464,2]
[345092167,1734009044509,-200.07013443,0.00015464,2]
[345092168,1734009044520,-546.07,0.00015464,2]
[345092169,1734009044530,-741.25,0.00015464,2]
[345092170,1734009044542,-741.25,0.00015464,2]
[345092171,1734009044554,-741.25,0.00015464,2]
[345092172,1734009044564,-741.25,0.00015464,2]
[345092173,1734009044575,-741.25,0.00015464,2]
[345092174,1734009044586,-741.25,0.00015464,2]
[345092175,1734009044596,-741.25,0.00015464,2]
[345092176,1734009044607,-741.25,0.00015464,2]
[345092177,1734009044618,-741.25,0.00015464,2]
[345092178,1734009044629,-500.0,0.00015464,2]
[345092179,1734009044640,-500.0,0.00015464,2]
[345092180,1734009044651,-429.75321404,0.00015464,2]
[345092181,1734009044662,-500.0,0.00015464,2]
[345092182,1734009044673,-500.0,0.00015464,2]
[345092183,1734009044685,-500.0,0.00015464,2]
[345092184,1734009044696,-500.0,0.00015464,2]
[345092185,1734009044707,-500.0,0.00015464,2]
[345092186,1734009044718,-500.0,0.00015464,2]
[345092187,1734009044728,-500.0,0.00015464,2]
[345092188,1734009044739,-500.0,0.00015464,2]
[345092189,1734009044750,-500.0,0.00015464,2]
[345092190,1734009044761,-500.0,0.00015464,2]
[345092191,1734009044775,-500.0,0.00015464,2]
[345092192,1734009044786,-500.0,0.00015464,2]
[345092193,1734009044796,-500.0,0.00015464,2]
[345092194,1734009044807,-500.0,0.00015464,2]
[345092195,1734009044818,-500.0,0.00015464,2]
[345092196,1734009044829,-500.0,0.00015464,2]
[345092197,1734009044839,-500.0,0.00015464,2]
[345092198,1734009044851,-500.0,0.00015464,2]
[345092199,1734009044862,-500.0,0.00015464,2]
[345092200,1734009044873,-3032.67,0.00015464,2]
[345092201,1734009044884,-3032.67,0.00015464,2]
[345092202,1734009044896,-3032.67,0.00015464,2]
[345092203,1734009044907,-3032.67,0.00015464,2]
[345092204,1734009044918,-3032.67,0.00015464,2]
[345092205,1734009044928,-3032.67,0.00015464,2]
[345092206,1734009044939,-3032.67,0.00015464,2]
[345092207,1734009044949,-2431.87037977,0.00015464,2]
[345092208,1734009045453,-600.79962023,0.00015464,2]
[345092209,1734009045463,-3032.67,0.00015464,2]
[345092210,1734009045473,-1285.95968427,0.00015464,2]
[345092226,1734009046332,-500.0,0.00015463,2]
[345092229,1734009046342,-1746.71031573,0.00015464,2]
[345092231,1734009046351,-500.0,0.00015464,2]
[345092233,1734009046361,-500.0,0.00015464,2]
[345092234,1734009046371,-500.0,0.00015464,2]
[345092237,1734009046380,-527.24,0.00015464,2]
[345092238,1734009046390,-286.04968427,0.00015464,2]
[345092239,1734009046403,-213.95031573,0.00015464,2]
[345092240,1734009046412,-500.0,0.00015464,2]
[345092241,1734009046422,-500.0,0.00015464,2]
[345092242,1734009046431,-500.0,0.00015464,2]
[345092243,1734009046440,-500.0,0.00015464,2]
[345092244,1734009046450,-500.0,0.00015464,2]
[345092245,1734009046459,-500.0,0.00015464,2]
[345092246,1734009046468,-500.0,0.00015464,2]
[345092247,1734009046478,-500.0,0.00015464,2]
[345092248,1734009046487,-500.0,0.00015464,2]
[345092249,1734009046497,-500.0,0.00015464,2]
[345092250,1734009046506,-500.0,0.00015464,2]
[345092251,1734009046515,-148.60128945,0.00015464,2]
[345092252,1734009046528,-703.62871055,0.00015464,2]
[345092253,1734009046538,-756.74293245,0.00015464,2]
[345092254,1734009046549,-95.48706755,0.00015464,2]
[345092255,1734009046559,-852.23,0.00015464,2]
[345092256,1734009046571,-852.23,0.00015464,2]
[345092257,1734009046581,-852.23,0.00015464,2]
[345092258,1734009046592,-852.23,0.00015464,2]
[345092259,1734009046602,-852.23,0.00015464,2]
[345092260,1734009046611,-852.23,0.00015464,2]
[345092261,1734009046621,-361.58747213,0.00015464,2]
[345092262,1734009046639,-790.0,0.00015311,2]
[345092263,1734009046657,-3953.99219999,0.00015311,2]
[345092264,1734009046668,-1979.26925503,0.00015311,2]
[345092265,1734009046683,-3880.83887318,0.00015311,2]
[345092299,1734009073515,157.598812,0.00010958,2]
[345092300,1734009073826,157.598812,0.00010958,2]
[345092304,1734009401572,513.91758852,0.00012837,2]
[345092305,1734009401593,542.08241148,0.00012837,2]
[345092306,1734009406010,870.22,0.00012476,2]
[345092307,1734009422802,853.25223612,0.00012195,2]
[345092308,1734009462770,153.0,0.00012766,2]
[345092309,1734009471445,153.0,0.00012766,2]
[345092310,1734009471677,153.0,0.00012766,2]
[345092311,1734009471896,153.0,0.00012766,2]
[345092312,1734009472122,153.0,0.00012766,2]
[345092313,1734009527737,153.0,0.00012766,2]
[345092314,1734009527958,153.0,0.00012766,2]
[345092315,1734009528201,153.0,0.00012766,2]
[345092316,1734009528416,153.0,0.00012766,2]
[345092318,1734009592465,153.0,0.00012766,2]
[345092319,1734009592679,153.0,0.00012766,2]
[345092320,1734009592894,153.0,0.00012766,2]
[345092321,1734009647551,153.0,0.00012766,2]
[345092322,1734009648335,153.0,0.00012766,2]
[345092323,1734009648646,153.0,0.00012766,2]
[345092325,1734010067170,153.0,0.00012767,2]
[345092326,1734010067386,153.0,0.00012767,2]
[345092338,1734010125907,153.0,0.00012767,2]
[345092339,1734010126139,153.0,0.00012767,2]
[345092340,1734010193875,153.0,0.00012767,2]
[345092352,1734010231699,-428.73000001,0.00013513,2]
[345092353,1734010231711,-334.08774945,0.00013513,2]
[345092354,1734010231815,-293.18225054,0.00013513,2]
[345092355,1734010231824,-436.35509392,0.00013598,2]
[345092356,1734010231833,-157.598812,0.00013698,2]
[345092357,1734010231842,-5011.0,0.00013699,2]
[345092358,1734010231851,-152.12,0.00013699,2]
[345092359,1734010231860,-153.0,0.00013789,2]
[345092360,1734010231870,-153.0,0.00013789,2]
[345092361,1734010231879,-153.0,0.00013789,2]
[345092362,1734010231890,-153.0,0.00013789,2]
[345092363,1734010231899,-250.0,0.00014049,2]
[345092364,1734010231908,-314.28,0.00014104,2]
[345092365,1734010231917,-10973.09,0.0001411,2]
[345092366,1734010231927,-500.0,0.00014141,2]
[345092367,1734010231936,-840.7,0.00014186,2]
[345092368,1734010231945,-1056.0,0.00014224,2]
[345092369,1734010231954,-250.0,0.00014249,2]
[345092370,1734010231963,-200.0,0.00014266,2]
[345092371,1734010231972,-346.92,0.00014266,2]
[345092372,1734010231981,-387.9,0.00014266,2]
[345092373,1734010231990,-10011.29,0.00014469,2]
[345092374,1734010231999,-150.0,0.00014471,2]
[345092375,1734010232007,-435.5,0.00014472,2]
[345092376,1734010232016,-434.86,0.00014478,2]
[345092377,1734010232025,-700.0,0.000145,5]
[345092378,1734010232034,-365.31,0.00014589,2]
[345092379,1734010232043,-1400.0,0.000146,5]
[345092380,1734010232052,-435.5,0.00014678,2]
[345092381,1734010232061,-2200.0,0.000147,5]
[345092382,1734010232070,-1000.0,0.00014733,2]
[345092383,1734010232080,-870.22,0.0001474,2]
[345092384,1734010232089,-150.0,0.000148,2]
[345092385,1734010232099,-2900.0,0.000148,5]
[345092386,1734010232110,-3700.0,0.000149,5]
[345092387,1734010232120,-1056.0,0.00014972,2]
[345092388,1734010232129,-157.598812,0.00015054,2]
[345092389,1734010232143,-150.0,0.00015056,2]
[345092390,1734010232154,-150.0,0.00015056,2]
[345092391,1734010232164,-278.22,0.00015056,2]
[345092392,1734010232173,-403.19396418,0.00015139,2]
[345092393,1734010232182,-715.64,0.00015178,2]
[345092394,1734010232194,-300.78,0.00015178,2]
[345092395,1734010232203,-975.22,0.00015293,2]
[345092396,1734010232212,-364.47,0.00015293,2]
[345092397,1734010232221,-150.0,0.00015293,2]
[345092398,1734010232230,-6421.89600372,0.00015354,2]
[345092399,1734010232239,-5321.11085804,0.00015355,2]
[345092400,1734010235144,-16267.80193222,0.00015355,2]
[345092445,1734010237728,-627.53087877,0.00015355,2]
[345092446,1734010237789,-387.90748,0.00015355,2]
[345092447,1734010237801,-1053.67638006,0.00015355,2]
[345092448,1734010237811,-6421.89600372,0.00015358,2]
[345092449,1734010237821,-6421.89600372,0.00015361,2]
[345092450,1734010237832,-267.56091339,0.00015362,2]
[345092451,1734010237844,-10920.78847632,0.00015364,2]
[345092452,1734010237856,-5938.94322113,0.00015364,2]
[345092453,1734010237875,-3572.74291756,0.00015364,2]
[345092454,1734010237912,-1810.50855534,0.00015364,2]
[345092462,1734010239599,-586.29909364,0.00015364,2]
[345092463,1734010239678,-828.7452651,0.00015364,2]
[345092464,1734010239688,-219.94445223,0.00015365,2]
[345092465,1734010239698,-270.48021629,0.0001537,2]
[345092466,1734010239711,-1215.85867,0.0001537,2]
[345092468,1734010241492,-328.05823,0.0001537,2]
[345092469,1734010241505,-806.400008,0.0001537,2]
[345092470,1734010241550,-3801.09887943,0.0001537,2]
[345092471,1734010241560,-5580.02063457,0.0001537,2]
[345092472,1734010241571,-5471.8373109,0.0001537,2]
[345092473,1734010241583,-6869.42928047,0.0001537,2]
[345092474,1734010241670,-5736.74030315,0.0001537,2]
[345092475,1734010241679,-5871.4670164,0.00015371,2]
[345092476,1734010241691,-597.14254594,0.00015371,2]
[345092491,1734010242629,-2284.23190559,0.00015371,2]
[345092492,1734010242644,-4053.6,0.00015371,2]
[345092493,1734010242684,-1007.5,0.00015371,2]
[345092494,1734010242744,-4924.75861925,0.00015371,2]
[345092495,1734010242806,-2533.1908231,0.00015371,2]
[345092496,1734010242818,-2386.13661881,0.00015371,2]
[345092497,1734010242827,-2791.23988919,0.00015371,2]
[345092498,1734010242838,-3630.65611453,0.00015371,2]
[345092499,1734010242848,-267.56091339,0.00015374,2]
[345092500,1734010242856,-267.56091339,0.00015374,2]
[345092501,1734010242866,-1728.65169394,0.00015384,2]
[345092502,1734010242878,-5289.27172154,0.00015384,2]
[345092503,1734010243075,-4717.6,0.00015384,2]
[345092523,1734010245511,-257.97814098,0.00015384,2]
[345092524,1734010245573,-11664.52597263,0.00015384,2]
[345092525,1734010245586,-23658.02752909,0.00015384,2]
[345092526,1734010245601,-267.56091339,0.00015396,2]
[345092527,1734010245611,-6421.89600372,0.00015397,2]
[345092528,1734010245622,-267.56091339,0.00015397,2]
[345092529,1734010245632,-12208.11976753,0.000154,2]
[345092530,1734010245646,-3679.39999996,0.000154,2]
[345092531,1734010245694,-310.64978967,0.000154,2]
[345092532,1734010245706,-615.3062218,0.000154,2]
[345092533,1734010245740,-404.2034797,0.000154,2]
[345092534,1734010245772,-425.10855756,0.00015309,2]
[345092535,1734010245783,-1839.99999992,0.00015309,2]
[345092536,1734010245806,-7852.89144252,0.00015309,2]
[345092537,1734010245816,-2782.32074134,0.000154,2]
[345092538,1734010245825,-11831.0,0.00015425,2]
[345092539,1734010245834,-854.18,0.00015462,2]
[345092540,1734010245843,-500.0,0.00015462,2]
[345092541,1734010245853,-500.0,0.00015462,2]
[345092542,1734010245862,-657.41,0.00015462,2]
[345092543,1734010245871,-500.0,0.00015462,2]
[345092544,1734010245880,-500.0,0.00015462,2]
[345092545,1734010245892,-500.0,0.00015462,2]
[345092546,1734010245901,-1775.99,0.00015462,2]
[345092547,1734010245911,-500.0,0.00015462,2]
[345092548,1734010245920,-500.0,0.00015462,2]
[345092549,1734010245929,-500.0,0.00015462,2]
[345092550,1734010245938,-500.0,0.00015462,2]
[345092551,1734010245947,-502.85855349,0.00015462,2]
[345092552,1734010245956,-500.0,0.00015462,2]
[345092553,1734010245965,-500.0,0.00015462,2]
[345092554,1734010245975,-646.99,0.00015462,2]
[345092555,1734010245984,-501.36067226,0.00015462,2]
[345092556,1734010245993,-501.80017264,0.00015462,2]
[345092557,1734010246002,-500.0,0.00015462,2]
[345092558,1734010246011,-500.0,0.00015462,2]
[345092559,1734010246020,-500.0,0.00015462,2]
[345092560,1734010246029,-500.54016636,0.00015463,2]
[345092561,1734010246038,-760.12,0.00015463,2]
[345092562,1734010246048,-506.80112971,0.00015463,2]
[345092563,1734010246057,-502.93453105,0.00015463,2]
[345092564,1734010246067,-503.35371701,0.00015463,2]
[345092565,1734010246075,-505.34216258,0.00015463,2]
[345092566,1734010246085,-500.0,0.00015463,2]
[345092567,1734010246094,-397.14228043,0.00015463,2]
[345092568,1734010246105,-500.0,0.00015463,2]
[345092569,1734010246118,-275.36834712,0.00015463,2]
[345092570,1734010246127,-500.0,0.00015463,2]
[345092571,1734010246138,-501.73441894,0.00015463,2]
[345092572,1734010246149,-500.0,0.00015463,2]
[345092573,1734010246159,-515.31501136,0.00015463,2]
[345092574,1734010246168,-503.89167698,0.00015463,2]
[345092575,1734010246177,-500.0,0.00015463,2]
[345092576,1734010246187,-497.13299336,0.00015463,2]
[345092577,1734010246197,-500.0,0.00015463,2]
[345092578,1734010246207,-501.14029505,0.00015463,2]
[345092579,1734010246217,-502.57830697,0.00015463,2]
[345092580,1734010246227,-500.84347897,0.00015463,2]